{"text_format":"3","workbook":"xlsx","n_sheets":2,"sheets":["Рахунок-квитанція","Дані компанії"],"not_rendered":{"images":1,"defined_names":27},"read":"whole","date_system":"1900"}

{"sheet":"Рахунок-квитанція","index":0,"n_rows":35,"n_cols":7,"rows_kept":35,"merged":[[1,3,2,4],[3,3,3,4],[4,3,4,4],[5,3,5,4],[23,1,23,3],[24,1,24,3],[25,1,25,3],[26,1,26,3]]}
[null,"РАХУНОК-ФАКТУРА","0005"]
[null,{"$f":"TODAY()","v":"2022-04-06"},null,{"$f":"ЗагальнаСумаЗаРахунком_фактурою","v":79.65},null," ","Дані компанії"]
[null,"ТЕРМІН ОПЛАТИ:",{"$f":"TODAY()+15","v":"2022-04-21"},null,null," "]
[null,"СВІТЛАНА ЛИСЕНКО",null,"КОМПАНІЯ \"НАРОДНА КОНДИТЕРСЬКА\""]
[null,"Компанія \"Товари та послуги\"",null,"вул. Довга, 123"]
[null,"вул. Головна, 123",null,"м. Дніпро 12345"]
[null,"м. Київ 12345"]
[null,"КІЛЬКІСТЬ","ВІДОМОСТІ","ЦІНА ЗА ОДИНИЦЮ","ЗАГАЛЬНА СУМА В РЯДКУ"]
[null,2,"Віджети",14.95,{"$f":"IFERROR(ВідомостіРахункаФактури[[#This Row],[ЦІНА ЗА ОДИНИЦЮ]]*ВідомостіРахункаФактури[[#This Row],[КІЛЬКІСТЬ]],\"\")","v":{"v":29.9,"d":"29.90"}}]
[null,5,"Пральні машини",9.95,{"$f":"IFERROR(ВідомостіРахункаФактури[[#This Row],[ЦІНА ЗА ОДИНИЦЮ]]*ВідомостіРахункаФактури[[#This Row],[КІЛЬКІСТЬ]],\"\")","v":49.75}]
[{"$nulls":4},{"$f":"IFERROR(ВідомостіРахункаФактури[[#This Row],[ЦІНА ЗА ОДИНИЦЮ]]*ВідомостіРахункаФактури[[#This Row],[КІЛЬКІСТЬ]],\"\")","v":0}]
[{"$nulls":4},{"$f":"IFERROR(ВідомостіРахункаФактури[[#This Row],[ЦІНА ЗА ОДИНИЦЮ]]*ВідомостіРахункаФактури[[#This Row],[КІЛЬКІСТЬ]],\"\")","v":0}]
[{"$nulls":4},{"$f":"IFERROR(ВідомостіРахункаФактури[[#This Row],[ЦІНА ЗА ОДИНИЦЮ]]*ВідомостіРахункаФактури[[#This Row],[КІЛЬКІСТЬ]],\"\")","v":0}]
[{"$nulls":4},{"$f":"IFERROR(ВідомостіРахункаФактури[[#This Row],[ЦІНА ЗА ОДИНИЦЮ]]*ВідомостіРахункаФактури[[#This Row],[КІЛЬКІСТЬ]],\"\")","v":0}]
[{"$nulls":4},{"$f":"IFERROR(ВідомостіРахункаФактури[[#This Row],[ЦІНА ЗА ОДИНИЦЮ]]*ВідомостіРахункаФактури[[#This Row],[КІЛЬКІСТЬ]],\"\")","v":0}]
[{"$nulls":4},{"$f":"IFERROR(ВідомостіРахункаФактури[[#This Row],[ЦІНА ЗА ОДИНИЦЮ]]*ВідомостіРахункаФактури[[#This Row],[КІЛЬКІСТЬ]],\"\")","v":0}]
[{"$nulls":4},{"$f":"IFERROR(ВідомостіРахункаФактури[[#This Row],[ЦІНА ЗА ОДИНИЦЮ]]*ВідомостіРахункаФактури[[#This Row],[КІЛЬКІСТЬ]],\"\")","v":0}]
[{"$nulls":4},{"$f":"IFERROR(ВідомостіРахункаФактури[[#This Row],[ЦІНА ЗА ОДИНИЦЮ]]*ВідомостіРахункаФактури[[#This Row],[КІЛЬКІСТЬ]],\"\")","v":0}]
[{"$nulls":4},{"$f":"IFERROR(ВідомостіРахункаФактури[[#This Row],[ЦІНА ЗА ОДИНИЦЮ]]*ВідомостіРахункаФактури[[#This Row],[КІЛЬКІСТЬ]],\"\")","v":0}]
[{"$nulls":4},{"$f":"IFERROR(ВідомостіРахункаФактури[[#This Row],[ЦІНА ЗА ОДИНИЦЮ]]*ВідомостіРахункаФактури[[#This Row],[КІЛЬКІСТЬ]],\"\")","v":0}]
[{"$nulls":4},{"$f":"IFERROR(ВідомостіРахункаФактури[[#This Row],[ЦІНА ЗА ОДИНИЦЮ]]*ВідомостіРахункаФактури[[#This Row],[КІЛЬКІСТЬ]],\"\")","v":0}]
[{"$nulls":4},{"$f":"IFERROR(ВідомостіРахункаФактури[[#This Row],[ЦІНА ЗА ОДИНИЦЮ]]*ВідомостіРахункаФактури[[#This Row],[КІЛЬКІСТЬ]],\"\")","v":0}]
[{"$nulls":4},{"$f":"IFERROR(ВідомостіРахункаФактури[[#This Row],[ЦІНА ЗА ОДИНИЦЮ]]*ВідомостіРахункаФактури[[#This Row],[КІЛЬКІСТЬ]],\"\")","v":0}]
[null,"Знижка"]
[null,"Загальна сума без податків",null,null,{"$f":"SUM(ВідомостіРахункаФактури[ЗАГАЛЬНА СУМА В РЯДКУ])-E24","v":{"v":79.65,"d":"79.65 ₴"}}]
[null,"Податок"]
[null,{"$f":"REPT(ДаніКомпанії_СкороченаНазваГрошовоїОдиниці,LEN(ДаніКомпанії_СкороченаНазваГрошовоїОдиниці)>0) & \" ПІДСУМОК\"","v":"UAH ПІДСУМОК"},null,null,{"$f":"IFERROR(E25+E26, \"\")","v":{"v":79.65,"d":"79.65 ₴"}}]
[null,"ВІДОМОСТІ ПРО ОПЛАТУ",null,null,"ІНШІ ВІДОМОСТІ"]
[null,"Ім’я одержувача:",{"$f":" ДаніКомпанії_ІмяОдержучаБанківськогоПереказу","v":"Компанія \"Народна кондитерська\""},null,{"$f":"IFERROR(ДаніКомпанії_ПовнеІмя,\"\")","v":""}]
[null,"Назва банку:",{"$f":"ДаніКомпанії_НазваБанку","v":"Комерційний банк"},null,{"$f":"IFERROR(\"Номер телефону: \" & ДаніКомпанії_НомерТелефону,\"\")","v":"Номер телефону: (425) 555-01-78"}]
[null,"Адреса банку:",{"$f":"ДаніКомпанії_АдресаБанку","v":"вул. Довга, 15 м. Дніпро 12345"},null,{"$f":"IFERROR(\"Факс: \" & ДаніКомпанії_Факс,\"\")","v":"Факс: (425) 123-45-67"}]
[null,"Номер рахунку:",{"$f":"ДаніКомпанії_БанківськийРахунок","v":1234567},null,{"$f":"IFERROR(ДаніКомпанії_URL_адреса,\"\")","v":"www.nationalcandies-ukraine-123.com.ua"}]
[null,"Код банку (код SWIFT)",{"$f":"ДаніКомпанії_КодБанку","v":9876543210},null,{"$f":"IFERROR(ДаніКомпанії_АдресаЕлектронноїПошти,\"\")","v":"Buhalteria@bnationalcandies-ukraine-123.com.ua"}]
[null,"Номер платежу:",{"$f":"ВідображенняНомераРахунка_фактури","v":"0005"},null,{"$f":"IFERROR(IF(LEN(Client_PO),\"Контракт/Замовлення на придбання: \" & Client_PO,\"\"),\"\")","v":""}]
[null,{"$f":"UPPER(\"Платіж має здійснюватися банківським переказом або чеком, який підлягає сплаті \" &ДаніКомпанії_ОдержувачКоштівЗаЧеком& \".\")","v":"ПЛАТІЖ МАЄ ЗДІЙСНЮВАТИСЯ БАНКІВСЬКИМ ПЕРЕКАЗОМ АБО ЧЕКОМ, ЯКИЙ ПІДЛЯГАЄ СПЛАТІ КОМПАНІЯ \"НАРОДНА КОНДИТЕРСЬКА\"."}]

{"sheet":"Дані компанії","index":1,"n_rows":20,"n_cols":5,"rows_kept":20}
[null,"ДАНІ КОМПАНІЇ"]
[null,"ВІДОМОСТІ ПО КОМПАНІЮ, ЯКА ВИСТАВЛЯЄ РАХУНОК-ФАКТУРУ","СУМА",null,"Рахунок-квитанція"]
[null,"Ім’я","Андрій Панасенко"]
[null,"Назва компанії","КОМПАНІЯ \"НАРОДНА КОНДИТЕРСЬКА\""]
[null,"Рядок адреси 1","вул. Довга, 123"]
[null,"Рядок адреси 2","м. Дніпро 12345"]
[null,"Рядок адреси 3"]
[null,"Рядок адреси 4"]
[null,"Рядок адреси 5"]
[null,"Номер телефону","(425) 555-01-78"]
[null,"Факс","(425) 123-45-67"]
[null,"Веб-сайт","www.nationalcandies-ukraine-123.com.ua"]
[null,"Електронна пошта","Buhalteria@bnationalcandies-ukraine-123.com.ua"]
[null,"Скорочена назва грошової одиниці","UAH"]
[null,"Ім’я одержувача банківського переказу","Компанія \"Народна кондитерська\""]
[null,"Назва банку","Комерційний банк"]
[null,"Адреса банку","вул. Довга, 15 м. Дніпро 12345"]
[null,"Номер рахунку",1234567]
[null,"Код банку (код SWIFT)",9876543210]
[null,"Одержувач платежів:","Компанія \"Народна кондитерська\""]